bitfinex-derivatives/quotes_ETHF0:USTF0_20250321
["timestamp","ask_amount","ask_price","bid_price","bid_amount"]
[1742572587325,4.63297794,1952.5,1952.4,1.02487]
[1742572588231,1.42517794,1952.5,1952.4,1.02487]
[1742572589126,1.42517794,1952.5,1952.4,2.43007]
[1742572589629,1.02445,1953.2,1953.1,24.97029837]
[1742572589824,4.31914468,1953.2,1953.1,24.97029837]
[1742572590131,5.54111581,1953.2,1953.1,24.97029837]
[1742572590527,6.84782358,1953.2,1953.1,24.97029837]
[1742572590928,6.76096914,1953.2,1953.1,24.97029837]
[1742572591526,6.76096914,1953.2,1953.1,25.99479837]
[1742572591730,5.67730333,1953.2,1953.1,24.97029837]
[1742572592031,9.96819511,1953.2,1953.1,24.97029837]
[1742572592336,6.53519511,1953.2,1953.1,24.97029837]
[1742572592721,9.25939511,1953.2,1953.1,25.99479837]
[1742572593327,9.25939511,1953.2,1953.1,24.97029837]
[1742572593837,11.84624931,1953.2,1953.1,24.97029837]
[1742572595631,11.84618112,1953.2,1953.1,24.97029837]
[1742572596736,11.84614085,1953.2,1953.1,24.97029837]
[1742572597133,47.35603958,1953.6,1953.5,5.19583039]
[1742572597437,1.02445,1953.2,1953.1,24.97029837]
[1742572597639,7.66425,1953.2,1953.1,24.97029837]
[1742572598136,7.75032713,1953.2,1953.1,24.97029837]
[1742572598640,7.75032014,1953.2,1953.1,24.97029837]
[1742572599541,8.6705312,1953.2,1953.1,24.97029837]
[1742572600336,11.4751312,1953.2,1953.1,24.97029837]
[1742572600840,10.55492014,1953.2,1953.1,24.97029837]
[1742572601140,11.47537167,1953.2,1953.1,24.97029837]
[1742572601335,11.47537167,1953.2,1953.1,19.80136205]
[1742572601931,11.4754009,1953.2,1953.1,19.80136205]
[1742572604945,11.38930153,1953.2,1953.1,19.80136205]
[1742572605142,11.47540419,1953.2,1953.1,19.80136205]
[1742572606544,11.38930153,1953.2,1953.1,19.80136205]
[1742572606743,11.4754088,1953.2,1953.1,16.917805]
[1742572607147,12.46990498,1953.2,1953.1,16.917805]
[1742572608544,9.17599771,1953.2,1953.1,16.917805]
[1742572608744,6.87554618,1953.2,1953.1,16.917805]
[1742572608948,6.87554618,1953.2,1953.1,19.016705]
[1742572609150,5.45094618,1953.2,1953.1,19.016705]
[1742572609352,5.83185,1953.2,1953.1,19.016705]
[1742572609551,6.82634618,1953.2,1953.1,19.016705]
[1742572610049,7.95378937,1953.2,1953.1,19.016705]
[1742572610643,6.57838937,1953.2,1953.1,19.016705]
[1742572610843,3.14638937,1953.2,1953.1,19.016705]
[1742572611143,1.02445,1953.2,1953.1,20.041205]
[1742572611449,1.02445,1953.2,1953.1,23.249005]
[1742572612957,2.12715395,1953.3,1953.2,1.02445]
[1742572612958,3.15158395,1953.3,1953.2,1.02445]
[1742572613256,1.02948196,1953.3,1953.2,3.14235]
[1742572613759,1.02948196,1953.3,1953.2,2.1179]
[1742572615053,1.02948196,1953.3,1953.2,3.14235]
[1742572616262,1.02433,1953.5,1953.4,1.02434]
[1742572616958,1.02433,1953.5,1953.4,2.40204]
[1742572617653,1.02433,1953.5,1953.4,1.3777]
[1742572617852,1.02433,1953.5,1953.4,2.40204]
[1742572621654,1.02433,1953.5,1953.4,1.3777]
[1742572622458,7.71240497,1953.5,1953.4,1.3777]
[1742572623161,4.50460497,1953.5,1953.4,1.3777]
[1742572623763,4.59073577,1953.5,1953.4,1.3777]
[1742572624063,7.79853577,1953.5,1953.4,1.3777]
[1742572624661,7.71240497,1953.5,1953.4,1.3777]
[1742572624857,7.79852178,1953.5,1953.4,1.3777]
[1742572625354,7.79852178,1953.5,1953.2,0.7032]
[1742572625558,4.23219,1953.3,1953.2,0.7032]
[1742572625763,4.23219,1953.3,1953.1,17.625205]
[1742572625764,1.02445,1953.2,1953.1,16.917805]
[1742572625958,7.31976094,1953.2,1953.1,16.917805]
[1742572626153,8.29129344,1953.2,1953.1,16.917805]
[1742572626349,9.41738836,1953.2,1953.1,16.917805]
[1742572628065,9.41738452,1953.2,1953.1,16.917805]
[1742572629266,1.0245,1953.1,1953.0,0.00767794]
[1742572629458,7.60067637,1953.1,1953.0,0.00767794]
[1742572629767,8.7267806,1953.1,1953.0,0.00767794]
[1742572629961,5.12287,1953.0,1952.5,1.3395]
[1742572630154,1.02476,1952.6,1952.5,2.046]
[1742572630359,4.45476,1952.6,1952.5,2.046]
[1742572630559,1.02487,1952.4,1952.3,0.645]
[1742572630969,7.66267,1952.4,1952.3,0.645]
[1742572631266,5.58097423,1952.4,1952.3,0.645]
[1742572631666,4.45487,1952.4,1952.3,0.645]
[1742572631866,5.85017,1952.4,1952.3,2.0265]
[1742572632073,6.3604891,1952.4,1952.3,1.3815]
[1742572632272,1.02492,1952.3,1952.2,1.38917794]
[1742572632457,2.42022,1952.3,1952.2,1.38917794]
[1742572632971,2.42022,1952.3,1952.2,0.00767794]
[1742572633263,6.37884106,1952.3,1952.2,0.00767794]
[1742572633461,9.155411,1952.3,1952.2,0.00767794]
[1742572633866,9.155411,1952.3,1952.2,7.94e-06]
[1742572634068,9.54260822,1952.3,1952.2,7.94e-06]
[1742572634269,9.45658716,1952.3,1952.2,7.94e-06]
[1742572634465,9.5425932,1952.3,1952.2,7.94e-06]
[1742572634668,9.54259441,1952.3,1952.2,7.94e-06]
[1742572636365,8.57392399,1952.3,1952.2,7.94e-06]
[1742572636560,8.18672677,1952.3,1952.2,7.94e-06]
[1742572637472,8.10071952,1952.3,1952.2,7.94e-06]
[1742572637765,8.18676379,1952.3,1952.2,7.94e-06]
[1742572639076,8.18681182,1952.3,1952.2,7.94e-06]
[1742572639665,1.02518,1951.8,1951.7,0.7125]
[1742572639869,4.45618,1951.8,1951.7,2.0708]
[1742572640370,1.02523,1951.7,1951.6,0.669]
[1742572640567,2.34153,1951.7,1951.6,2.0273]
[1742572642875,4.45623,1951.7,1951.6,3.05259]
[1742572643673,3.431,1951.7,1951.6,3.05259]
[1742572644177,4.45623,1951.7,1951.6,3.05259]
[1742572644973,1.0252,1951.8,1951.7,1.0252]
[1742572645178,1.0252,1951.8,1951.7,2.3583]
[1742572645385,1.0252,1951.8,1951.7,3.8331]
[1742572645877,4.4562,1951.8,1951.7,1.3331]
[1742572646480,5.7709,1951.8,1951.7,1.3331]
[1742572648570,3.431,1951.8,1951.7,2.35833]
[1742572648878,4.45618,1951.8,1951.7,2.35833]
[1742572649083,4.45618,1951.8,1951.7,3.8331]
[1742572649580,4.45618,1951.8,1951.7,1.3331]
[1742572650178,5.93405822,1951.8,1951.7,1.3331]
[1742572650386,5.9340571,1951.8,1951.7,1.3331]
[1742572651986,5.93408929,1951.8,1951.7,1.3331]
[1742572652585,5.93409715,1951.8,1951.7,1.3331]
[1742572652888,9.14189673,1951.8,1951.7,1.3331]
[1742572654083,9.14189673,1951.8,1951.5,0.00767794]
[1742572654084,1.02529,1951.6,1951.5,0.00767794]
[1742572654281,7.75130673,1951.6,1951.5,0.00767794]
[1742572654682,9.03750673,1951.6,1951.5,0.00767794]
[1742572654985,9.03749583,1951.6,1951.5,0.00767794]
[1742572655387,10.16125583,1951.6,1951.5,0.00767794]
[1742572655987,11.13119127,1951.6,1951.5,0.00767794]
[1742572656684,11.13118485,1951.6,1951.5,0.00767794]
[1742572658396,12.05093356,1951.6,1951.5,0.00767794]
[1742572658693,11.13118485,1951.6,1951.5,0.00767794]
[1742572659385,7.69918485,1951.6,1951.5,0.00767794]
[1742572659587,11.13118485,1951.6,1951.5,0.00767794]
[1742572659987,10.10589485,1951.6,1951.5,1.03301794]
[1742572660182,8.78885,1951.6,1951.5,1.03301794]
[1742572660392,8.78885,1951.6,1951.5,0.00767794]
[1742572660692,8.78885,1951.6,1951.5,1.36067794]
[1742572660892,7.66509,1951.6,1951.5,1.36067794]
[1742572661195,7.66509,1951.6,1951.5,2.73497794]
[1742572661391,7.66509,1951.6,1951.5,5.23497794]
[1742572662093,9.76391404,1951.6,1951.5,2.73497794]
[1742572662294,9.85007907,1951.6,1951.5,2.73497794]
[1742572662793,10.77098859,1951.6,1951.5,1.38197794]
[1742572663191,10.77098859,1951.6,1951.5,0.00767794]
[1742572663390,12.06668859,1951.6,1951.5,0.00767794]
[1742572672503,12.06665223,1951.6,1951.5,0.00767794]
[1742572677402,12.06666362,1951.6,1951.5,0.00767794]
[1742572678602,12.06666362,1951.6,1951.5,1.40707794]
[1742572678801,12.06666362,1951.6,1951.5,2.11537794]
[1742572679005,11.98052356,1951.6,1951.5,2.11537794]
[1742572680402,12.06671284,1951.6,1951.5,2.11537794]
[1742572680601,12.15291177,1951.6,1951.5,2.11537794]
[1742572680803,12.06672249,1951.6,1951.5,2.11537794]
[1742572681606,7.33902249,1951.6,1951.5,2.11537794]
[1742572681903,10.77257162,1951.6,1951.5,2.11537794]
[1742572682100,9.84911297,1951.6,1951.5,2.11537794]
[1742572682304,10.77278452,1951.6,1951.5,2.11537794]
[1742572682805,6.64131297,1951.6,1951.5,2.11537794]
[1742572683012,6.55511404,1951.6,1951.5,2.11537794]
[1742572683215,6.55511404,1951.6,1951.5,3.14071794]
[1742572683409,6.49925,1951.8,1951.7,1.02521]
[1742572683410,1.02519,1951.8,1951.7,1.02521]
[1742572683615,4.54243814,1951.8,1951.7,1.02521]
[1742572683824,1.02523,1951.7,1951.6,2.42704]
[1742572684210,1.02523,1951.7,1951.6,3.9018]
[1742572684511,1.02523,1951.7,1951.6,4.92709]
[1742572684707,1.02523,1951.7,1951.6,3.9018]
[1742572685213,1.02523,1951.7,1951.6,4.92709]
[1742572685509,1.02513,1952.0,1951.8,1.02514]
[1742572685709,4.45608,1952.0,1951.9,1.405]
[1742572685914,4.54235535,1952.0,1951.9,1.405]
[1742572686415,4.45608,1952.0,1951.9,1.405]
[1742572686709,4.54236073,1952.0,1951.9,3.905]
[1742572687014,6.8148595,1952.0,1951.9,3.905]
[1742572687213,7.5143595,1952.0,1951.9,3.905]
[1742572687406,1.02529,1951.6,1951.5,0.00767794]
[1742572687606,7.75033205,1951.6,1951.5,0.00767794]
[1742572688012,8.67317749,1951.6,1951.5,0.00767794]
[1742572688702,7.75033205,1951.6,1951.5,0.00767794]
[1742572689310,7.66409,1951.6,1951.5,0.00767794]
[1742572689515,7.66409,1951.6,1951.5,1.43367794]
[1742572690815,7.66409,1951.6,1951.5,3.93367794]
[1742572691328,4.45629,1951.6,1951.5,3.93367794]
[1742572691509,4.54254855,1951.6,1951.5,1.43367794]
[1742572691819,6.54714855,1951.6,1951.5,1.43367794]
[1742572692220,6.54714855,1951.6,1951.5,0.00767794]
[1742572692221,7.47021393,1951.6,1951.5,0.00767794]
[1742572692422,1.02544,1951.3,1951.2,0.6609]
[1742572692717,1.02544,1951.3,1951.2,3.1609]
[1742572692718,4.45544,1951.3,1951.2,3.1609]
[1742572692913,4.45544,1951.3,1951.2,0.6609]
[1742572693314,4.45544,1951.3,1951.2,1.6864]
[1742572693514,4.45544,1951.3,1951.2,0.6609]
[1742572693913,4.45544,1951.3,1951.2,2.086]
[1742572694515,4.45544,1951.3,1951.2,1.4251]
[1742572694922,4.45544,1951.3,1951.2,2.4506]
[1742572695320,4.45544,1951.3,1951.2,1.4251]
[1742572696820,4.45544,1951.3,1951.2,2.4506]
[1742572697023,3.43,1951.3,1951.2,2.4506]
[1742572697422,0.00767794,1951.4,1951.3,1.02544]
[1742572697623,0.00767794,1951.4,1951.3,3.06724]
[1742572697823,0.00767794,1951.4,1951.3,5.56724]
[1742572698820,2.12916042,1951.6,1951.3,4.5418]
[1742572699020,2.12916042,1951.6,1951.5,1.02534]
[1742572699218,2.12916042,1951.6,1951.4,1.3853]
[1742572699422,1.10385042,1951.6,1951.4,1.3853]
[1742572699617,2.12915042,1951.6,1951.5,1.02534]
[1742572700030,2.12915042,1951.6,1951.5,4.86554]
[1742572700832,2.12915042,1951.6,1951.5,3.8402]
[1742572702028,2.12915042,1951.6,1951.5,4.86554]
[1742572702228,1.10385042,1951.6,1951.5,4.86554]
[1742572702622,2.12914042,1951.6,1951.5,4.86554]
[1742572702822,1.10385042,1951.6,1951.5,2.36554]
[1742572703230,0.00767794,1951.7,1951.6,1.02529]
[1742572703429,0.00767794,1951.7,1951.6,3.04489]
[1742572706425,1.03290794,1951.7,1951.6,3.04489]
[1742572706633,0.00767794,1951.7,1951.6,3.04489]
[1742572708436,1.10385042,1951.8,1951.7,1.02523]
[1742572708636,1.97869203,1952.1,1952.0,1.02508]
[1742572708825,1.02502,1952.1,1952.0,1.02508]
[1742572709228,1.02502,1952.1,1952.0,2.33397]
[1742572709429,1.02502,1952.1,1952.0,2.33392]
[1742572710430,1.03264794,1952.2,1952.1,1.02502]
[1742572710736,0.00767794,1952.2,1952.1,5.54172]
[1742572711128,0.00767794,1952.2,1952.1,2.33392]
[1742572711530,0.6514,1952.4,1952.3,1.02492]
[1742572712128,8.61684928,1952.5,1952.4,1.02487]
[1742572712335,3.13091,1952.5,1952.4,1.02487]
[1742572713436,2.1061,1952.5,1952.4,1.02487]
[1742572714133,3.13091,1952.5,1952.4,1.02487]
[1742572714335,2.1061,1952.5,1952.4,1.02487]
[1742572714728,2.1061,1952.5,1952.3,2.35156794]
[1742572714929,1.2871,1952.4,1952.3,2.35156794]
[1742572715131,0.6904,1952.5,1952.4,1.02487]
[1742572715931,3.2078,1952.8,1952.3,3.21547794]
[1742572716238,1.02473,1952.7,1952.6,1.02474]
[1742572716425,1.3647,1952.9,1952.6,1.02474]
[1742572716628,1.02448,1953.2,1952.8,1.02466]
[1742572716825,0.651,1953.1,1953.0,1.02451]
[1742572717530,1.6755,1953.1,1953.0,1.02451]
[1742572717737,1.02455,1953.0,1952.9,4.23237]
[1742572717931,1.2912,1953.0,1952.7,3.2078]
[1742572718238,1.02475,1952.7,1952.5,1.02479]
[1742572718441,1.2912,1952.6,1952.5,1.02479]
[1742572718624,2.31596,1952.6,1952.5,1.02479]
[1742572718945,2.31601,1952.6,1952.4,1.02484]
[1742572719133,2.31601,1952.5,1952.4,1.02484]
[1742572719333,1.2912,1952.5,1952.4,1.02484]
[1742572719837,1.0248,1952.6,1952.5,1.02481]
[1742572719838,1.2912,1952.6,1952.5,1.02481]
[1742572720136,1.67574,1952.7,1952.6,1.02476]
[1742572720435,2.96694,1952.7,1952.5,4.23257]
[1742572720733,2.96694,1952.7,1952.6,1.02476]
[1742572721438,3.2078,1953.1,1952.5,3.2078]
[1742572721634,2.46117354,1953.0,1952.8,1.02462]
[1742572721838,2.37487,1953.0,1952.9,1.0246]
[1742572722037,2.37487,1953.0,1952.8,1.02462]
[1742572722431,2.3749,1952.9,1952.8,1.02462]
[1742572724838,1.02466,1952.8,1952.5,3.427]
[1742572725136,3.75556,1952.8,1952.7,1.02471]
[1742572725336,2.7309,1952.8,1952.7,1.02471]
[1742572725531,1.02458,1953.0,1952.9,1.0246]
[1742572725736,2.42238,1953.0,1952.9,1.0246]
[1742572726636,1.0246,1952.9,1952.8,1.73162]
[1742572727032,1.02466,1952.8,1952.7,7.65947]
[1742572727834,0.6667,1952.8,1952.5,7.65859]
[1742572728142,0.6667,1952.8,1952.6,1.02476]
[1742572728143,1.9411,1952.7,1952.6,1.02476]
[1742572728340,2.96585,1952.7,1952.6,1.02476]
[1742572728728,1.0247,1952.8,1952.7,1.02471]
[1742572729146,2.6366,1952.9,1952.8,1.02466]
[1742572729347,0.6731,1952.9,1952.8,2.38276]
[1742572729950,2.3214,1953.0,1952.9,1.0246]
[1742572730150,2.3214,1953.0,1952.9,2.3623]
[1742572730754,2.3214,1953.0,1952.9,1.3377]
[1742572730956,2.3214,1953.0,1952.9,2.3623]
[1742572731560,2.32135,1953.0,1952.9,2.3623]
[1742572731855,1.2968,1953.0,1952.9,2.3623]
[1742572733659,1.02455,1953.0,1952.9,1.3377]
[1742572733857,1.3553,1953.0,1952.9,2.36226]
[1742572734158,2.37985,1953.0,1952.9,2.36226]
[1742572737363,2.37985,1953.0,1952.9,1.3377]
[1742572737763,1.02466,1952.8,1952.7,7.65849]
[1742572737971,1.02466,1952.8,1952.7,4.23249]
[1742572738461,1.71696,1952.8,1952.7,4.23249]
[1742572738659,0.6923,1952.8,1952.7,4.23249]
[1742572738852,1.3007,1952.9,1952.8,1.02466]
[1742572739057,1.69763,1953.1,1953.0,1.02455]
[1742572739654,3.09703,1953.1,1953.0,2.37365]
[1742572741168,3.09703,1953.1,1953.0,1.3491]
[1742572741466,1.0246,1952.9,1952.8,1.02462]
[1742572741867,1.02466,1952.8,1952.7,4.23247]
[1742572742069,1.83286,1952.8,1952.7,4.23247]
[1742572742264,1.83286,1952.8,1952.7,3.2078]
[1742572742463,1.83286,1952.8,1952.7,4.23251]
[1742572742960,1.83286,1952.8,1952.7,5.59061]
[1742572743557,1.83286,1952.8,1952.7,1.3581]
[1742572743761,1.02476,1952.6,1952.5,4.23258]
[1742572743957,1.02476,1952.6,1952.5,4.5659]
[1742572744370,2.41126,1952.6,1952.5,4.5659]
[1742572744962,1.3865,1952.6,1952.5,5.59071]
[1742572745265,2.41126,1952.6,1952.5,5.59071]
[1742572746670,2.41126,1952.6,1952.5,4.5659]
[1742572747266,2.41126,1952.6,1952.5,1.3581]
[1742572748366,2.41126,1952.6,1952.5,2.38291]
[1742572748567,2.41126,1952.6,1952.5,5.59071]
[1742572749463,2.41126,1952.6,1952.5,4.5659]
[1742572751168,2.41126,1952.6,1952.3,3.21547794]
[1742572751169,1.02487,1952.5,1952.3,3.21547794]
[1742572751366,3.25377,1952.5,1952.4,1.02487]
[1742572751570,3.25377,1952.5,1952.4,1.2989]
[1742572751967,3.25377,1952.5,1952.3,3.21547794]
[1742572751968,1.02487,1952.4,1952.3,0.00767794]
[1742572752171,2.41827,1952.4,1952.3,0.00767794]
[1742572752370,5.84327,1952.4,1952.3,0.00767794]
[1742572753070,6.92319137,1952.4,1952.3,0.00767794]
[1742572753976,1.02508,1952.0,1951.9,4.23289]
[1742572754169,1.02508,1952.0,1951.9,3.2078]
[1742572754469,1.02518,1951.8,1951.7,1.0252]
[1742572755073,1.3857,1951.8,1951.7,2.3792]
[1742572755276,2.41088,1951.8,1951.7,2.3792]
[1742572755477,1.3857,1951.8,1951.7,2.3792]
[1742572755869,2.41088,1951.8,1951.7,2.3792]
[1742572756069,1.3857,1951.8,1951.7,2.3792]
[1742572756780,0.00767794,1951.9,1951.8,1.02518]
[1742572757070,5.12267,1953.1,1951.8,1.02518]
[1742572757071,0.8228,1952.3,1952.2,1.02497]
[1742572757268,0.8228,1952.3,1952.2,4.23277]
[1742572757575,1.84772,1952.3,1952.2,45.03277]
[1742572757780,3.27382,1952.3,1952.2,46.36327]
[1742572758874,2.2489,1952.3,1952.2,46.36327]
[1742572759078,3.27382,1952.3,1952.2,46.36327]
[1742572760776,0.8527,1952.5,1952.2,4.5383]
[1742572761082,2.32027,1952.4,1952.3,2.42022]
[1742572761284,2.32027,1952.4,1952.3,43.22022]
[1742572762484,2.32027,1952.4,1952.3,2.42022]
[1742572762679,2.32027,1952.4,1952.3,1.3953]
[1742572763076,2.32027,1952.4,1952.2,4.23274]
[1742572763077,1.02492,1952.3,1952.0,3.2078]
[1742572763273,1.3504,1952.3,1952.1,1.2858]
[1742572763473,2.37532,1952.3,1952.2,1.02497]
[1742572763679,1.3504,1952.3,1952.2,1.02497]
[1742572763878,2.37532,1952.3,1952.2,1.02497]
[1742572764784,1.3504,1952.3,1952.1,1.2858]
[1742572764986,1.02496,1952.3,1952.2,1.02497]
[1742572765487,1.02496,1952.3,1952.2,1.02495]
[1742572765684,1.02497,1952.3,1952.2,1.02495]
[1742572768279,1.02497,1952.3,1952.1,1.2858]
[1742572768280,1.02497,1952.2,1952.1,2.31079]
[1742572770291,1.02496,1952.3,1952.2,1.02494]
[1742572770495,4.4499,1952.4,1952.3,1.02492]
[1742572770791,3.425,1952.4,1952.3,2.37802]
[1742572770983,4.44987,1952.4,1952.3,2.37802]
[1742572771583,3.425,1952.4,1952.3,2.37802]
[1742572771784,4.44987,1952.4,1952.3,2.37802]
[1742572775593,2.56231,1952.3,1951.8,6.64294]
[1742572775793,1.0251,1952.0,1951.9,2.33029]
[1742572775993,1.02508,1952.0,1951.9,2.33029]
[1742572776995,1.94107,1952.1,1952.0,1.02508]
[1742572777195,1.94107,1952.1,1952.0,2.33028]
[1742572777494,1.94102,1952.1,1952.0,5.53808]
[1742572777889,0.916,1952.1,1952.0,5.53808]
[1742572778686,1.91351279,1952.3,1952.2,1.02497]
[1742572778891,0.8335,1952.3,1952.2,4.23277]
[1742572779287,0.8335,1952.3,1952.2,6.49877]
[1742572780391,1.85842,1952.3,1952.2,6.49877]
[1742572780595,3.25452,1952.3,1952.2,6.49877]
[1742572781094,3.25452,1952.3,1952.2,5.59597]
[1742572781690,2.2296,1952.3,1952.2,5.59597]
[1742572781891,3.25452,1952.3,1952.2,5.59597]
[1742572783490,3.25452,1952.3,1952.2,2.38817]
[1742572784293,2.2296,1952.3,1952.0,3.2078]
[1742572784487,2.40547,1952.2,1952.1,1.3416]
[1742572784692,1.02502,1952.1,1952.0,3.2078]
[1742572784888,3.30202,1952.1,1952.0,3.2078]
[1742572785102,1.02508,1952.0,1951.9,2.36669]
[1742572785290,1.02523,1951.7,1951.6,3.21547794]
[1742572785500,1.02523,1951.7,1951.6,4.24076794]
[1742572785798,1.02523,1951.7,1951.6,1.03296794]
[1742572786188,2.40573,1951.7,1951.6,1.03296794]
[1742572786802,2.40573,1951.7,1951.6,0.00767794]
[1742572787395,4.9623785,1951.7,1951.1,6.65577]
[1742572787604,4.9623785,1951.7,1951.4,1.02535]
[1742572787605,5.82911,1951.6,1951.4,1.02535]
[1742572787899,5.82911,1951.6,1951.3,3.2078]
[1742572787900,5.82911,1951.6,1951.5,1.3198]
[1742572788596,4.8038,1951.6,1951.5,2.34514]
[1742572789001,4.8038,1951.6,1951.5,5.55294]
[1742572790894,1.3798,1951.6,1951.5,5.55294]
[1742572791399,2.40509,1951.6,1951.5,5.55294]
[1742572791600,1.3798,1951.6,1951.5,5.55294]
[1742572794902,2.40509,1951.6,1951.5,5.55294]
[1742572795506,2.40509,1951.6,1951.5,1.3198]
[1742572795902,2.40509,1951.6,1951.5,2.34514]
[1742572796498,2.40509,1951.6,1951.5,1.3198]
[1742572796715,2.40509,1951.6,1951.5,2.34514]
[1742572797113,2.40509,1951.6,1951.5,5.55294]
[1742572797817,1.3798,1951.6,1951.5,5.55294]
[1742572798713,0.00767794,1951.7,1951.6,1.02529]
[1742572798910,0.9046,1951.9,1951.8,1.02518]
[1742572799107,0.9046,1951.9,1951.8,4.23298]
[1742572799308,1.92973,1951.9,1951.8,4.23298]
[1742572799709,1.02518,1951.8,1951.7,2.357]
[1742572800008,3.31738,1951.8,1951.7,1.3318]
[1742572800416,3.31738,1951.8,1951.6,3.2078]
[1742572800713,1.4037,1951.7,1951.6,3.2078]
[1742572801029,1.4037,1951.7,1951.4,3.21547794]
[1742572801210,1.4037,1951.7,1951.5,1.381]
[1742572801404,1.02531,1951.6,1951.5,2.40631]
[1742572802212,1.02531,1951.6,1951.5,1.381]
[1742572804012,1.02534,1951.5,1951.4,3.21547794]
[1742572804317,4.23084,1951.5,1951.4,4.24086794]
[1742572805109,4.23084,1951.5,1951.4,3.21547794]
[1742572805312,1.94544,1951.5,1951.4,0.00767794]
[1742572805512,4.12154,1951.5,1951.4,0.00767794]
[1742572805711,4.12154,1951.5,1951.4,5.66706794]
[1742572805712,3.0962,1951.5,1951.4,5.66706794]
[1742572805916,5.77047,1952.1,1951.7,1.02519]
[1742572806106,5.77047,1952.1,1951.8,1.02518]
[1742572806107,5.26325491,1952.0,1951.8,1.02518]
[1742572806312,1.0252,1951.8,1951.7,1.02521]
[1742572806614,1.02523,1951.7,1951.6,4.23304]
[1742572806917,2.31203,1951.7,1951.6,4.23304]
[1742572807517,2.31203,1951.7,1951.6,3.2078]
[1742572807716,1.02534,1951.5,1951.4,4.24083794]
[1742572807922,1.02534,1951.5,1951.4,3.21547794]
[1742572808219,1.02534,1951.5,1951.4,0.00767794]
[1742572808419,1.0255,1951.2,1951.1,40.8]
[1742572808718,4.3517,1951.4,1951.3,1.02544]
[1742572808923,0.8667,1951.6,1951.5,1.02534]
[1742572809126,4.44918,1951.8,1951.7,1.02523]
[1742572809921,1.02523,1951.7,1951.6,4.24071794]
[1742572810316,4.3517,1951.8,1951.6,3.21547794]
[1742572810526,1.02523,1951.7,1951.6,4.24072794]
[1742572810721,1.02523,1951.7,1951.6,3.21547794]
[1742572811025,1.02523,1951.7,1951.6,1.03296794]
[1742572811523,5.37691,1951.8,1951.7,1.02523]
[1742572812124,5.37691,1951.8,1951.6,4.24073794]
[1742572812125,1.02523,1951.7,1951.6,4.24073794]
[1742572813019,1.02523,1951.7,1951.6,3.21547794]
[1742572813220,1.02523,1951.7,1951.6,0.00767794]
[1742572814012,1.95633559,1951.7,1951.6,0.00767794]
[1742572814220,1.02542,1951.4,1951.3,1.02542]
[1742572814618,1.0255,1951.2,1951.1,1.0255]
[1742572814814,1.02555,1951.1,1951.0,4.23337]
[1742572815419,0.9024,1951.2,1951.0,3.2078]
[1742572815621,1.92794,1951.2,1951.1,1.02555]
[1742572815829,1.02555,1951.1,1951.0,4.23336]
[1742572816027,1.92791,1951.2,1951.1,1.02555]
[1742572816430,1.92791,1951.2,1951.0,3.2078]
[1742572816431,1.02555,1951.1,1951.0,4.23336]
[1742572816625,1.02555,1951.1,1951.0,3.2078]
[1742572816825,1.0256,1951.0,1950.9,0.00767794]
[1742572818225,4.2334,1951.0,1950.9,0.00767794]
[1742572818430,4.2334,1951.0,1950.5,1.02585]
[1742572818431,1.02581,1950.6,1950.5,1.02585]
[1742572818626,1.02581,1950.6,1950.5,41.82585]
[1742572818827,1.02581,1950.7,1950.5,41.82585]
[1742572819028,2.33131,1950.7,1950.6,2.31021]
[1742572819228,2.33131,1950.7,1950.6,1.2844]
[1742572819433,2.33131,1950.7,1950.5,40.8]
[1742572819434,1.3055,1950.7,1950.3,0.9073]
[1742572819732,4.44981,1950.6,1950.5,0.00767794]
[1742572820529,4.53622514,1950.6,1950.5,0.00767794]
[1742572820736,4.53622619,1950.6,1950.5,0.00767794]
[1742572821830,4.44981,1950.6,1950.5,0.00767794]
[1742572822230,3.424,1950.6,1950.5,1.03354794]
[1742572822431,4.44981,1950.6,1950.5,0.00767794]
[1742572823136,4.44981,1950.6,1950.5,1.40717794]
[1742572826434,1.3055,1950.7,1950.5,4.61497794]
[1742572826634,0.00767794,1950.8,1950.7,1.02576]
[1742572826835,3.425,1951.2,1951.1,1.02555]
[1742572827038,3.2078,1951.6,1951.2,1.0255]
[1742572827232,4.85627356,1951.5,1951.4,1.02538]
[1742572827533,4.85627356,1951.5,1951.3,1.3533]
[1742572827534,1.02539,1951.4,1951.3,2.3787]
[1742572827730,5.79527,1951.5,1951.3,1.3533]
[1742572827931,5.80294794,1951.5,1951.4,2.37869]
[1742572828132,5.8893184,1951.5,1951.4,1.3533]
[1742572828335,5.8893184,1951.5,1951.4,2.37869]
[1742572828534,4.8639484,1951.5,1951.4,2.37869]
[1742572828739,4.77757794,1951.5,1951.4,2.37869]
[1742572828944,5.80291794,1951.5,1951.4,1.3533]
[1742572829241,5.80291794,1951.5,1951.4,2.37869]
[1742572829440,0.00767794,1951.5,1951.4,2.37869]
[1742572829743,4.7699,1951.9,1951.8,1.02518]
[1742572830535,5.79503,1951.9,1951.7,2.43379]
[1742572830836,5.79503,1951.9,1951.7,2.44146794]
[1742572831440,5.79506,1951.9,1951.7,2.44149794]
[1742572831640,6.68756,1951.9,1951.7,2.44149794]
[1742572832044,5.6624,1951.9,1951.8,1.02518]
[1742572832435,0.00767794,1952.0,1951.9,1.02513]
[1742572833438,1.31277794,1952.0,1951.9,1.02513]
[1742572833740,1.31277794,1952.0,1951.9,2.33913]
[1742572834945,0.00767794,1952.0,1951.9,2.33913]
[1742572837946,1.29527794,1952.0,1951.9,1.314]
[1742572838246,1.02518,1951.8,1951.7,0.00767794]
[1742572838446,1.02518,1951.8,1951.7,1.38927794]
[1742572838847,2.2118,1951.8,1951.7,1.38927794]
[1742572839139,3.23698,1951.8,1951.7,1.38927794]
[1742572839347,3.23698,1951.8,1951.7,0.00767794]
[1742572839538,10.569007,1951.8,1951.2,0.8881]
[1742572839738,6.072457,1951.7,1951.3,1.3487]
[1742572839938,1.02539,1951.4,1951.3,1.3487]
[1742572840146,3.423,1951.5,1951.3,1.3487]